Cogmind - Beta 11 X8 @@@ ROGUE MODE // 2021.12.16 @ 11:31:33 Player: OccultOnion Result: Destroyed by D-53 Grenadier with Mini Grenade Launcher Performance ------------- Evolutions (1) 500 Regions Visited (3) 600 Robots Destroyed (13) 65 Value Destroyed (397) 397 Prototype IDs (0) 0 Alien Tech Used (0) 0 Bonus (0) 0 TOTAL SCORE: 1562 Bonus ------- None Cogmind --------- Core Integrity 0/400 Matter 300/300 Energy 98/100 System Corruption 0% Temperature Cool (1) Movement Core (200) Ox3 Location -9/Mines Parts ------- > --- POWER (1) -------- (None) > --- PROPULSION (3) --- (None) > --- UTILITY (3) ------ Medium Storage Unit Sensor Array > --- WEAPON (2) ------- (None) > --- INVENTORY (10) --- Light Ion Engine Improved Ion Engine Light Treads Improved Treads Small Storage Unit Reclamation Unit Light Cannon EMP Blaster Peak State ------------ > --- POWER ------------ Ion Engine > --- PROPULSION ------- Light Treads Aluminum Leg Improved Aluminum Leg > --- UTILITY ---------- Medium Storage Unit Sensor Array Signal Interpreter > --- WEAPON ----------- Medium Laser Light Cannon > --- INVENTORY -------- Light Ion Engine Improved Ion Engine Light Treads Improved Treads Small Storage Unit Reclamation Unit Light Cannon EMP Blaster [Rating: 11] Favorites ----------- Power Ion Engine Engine Ion Engine Propulsion Aluminum Leg Treads Light Treads Leg Aluminum Leg Wheel Wheel Utility Small Storage Unit Device Sensor Array Storage Small Storage Unit Processor Signal Interpreter Weapon Light Assault Rifle Energy Gun Medium Laser Ballistic Gun Light Assault Rifle Ballistic Cannon Light Cannon Build | -11 -10 -9 -9 ------- Run | Scr Mat Mat Min Slots Evolved 2 | . . 2 . Power . | . . . . Propulsion 1 | . . 1 . Utility 1 | . . 1 . Weapon . | . . . . Parts Attached 13 | . 3 8 2 Power 1 | . . 1 . Engine 1 | . . 1 . Core . | . . . . Reactor . | . . . . Propulsion 5 | . . 4 1 Treads 1 | . . 1 . Leg 2 | . . 1 1 Wheel 2 | . . 2 . Hover . | . . . . Flight . | . . . . Utility 4 | . 1 2 1 Device 2 | . 1 . 1 Storage 1 | . . 1 . Processor 1 | . . 1 . Hackware . | . . . . Protection . | . . . . Artifact . | . . . . Weapon 3 | . 2 1 . Energy Gun 1 | . 1 . . Energy Cannon . | . . . . Ballistic Gun 1 | . 1 . . Ballistic Cannon 1 | . . 1 . Launcher . | . . . . Special Weapon . | . . . . Impact Weapon . | . . . . Slashing Weapon . | . . . . Piercing Weapon . | . . . . Special Melee Weapon . | . . . . Unidentified Prototypes . | . . . . Parts Lost 16 | . 2 7 7 Power 2 | . . 1 1 Propulsion 7 | . . 4 3 Utility 2 | . . 1 1 Weapon 5 | . 2 1 2 Highest Loss Streak 10 | . 2 3 10 Average Slot Usage (%) 90 | . 85 97 88 Engine 12 | . 14 11 7 Treads 3 | . . 8 7 Leg 21 | . 28 10 22 Wheel 4 | . . 13 . Device 6 | . 3 10 7 Storage 12 | . 14 11 11 Processor 4 | . . 11 11 Energy Gun 5 | . 1 11 11 Ballistic Gun 17 | . 23 9 . Naked Turns . | . . . . Heaviest Build 21 | 13 14 21 21 Greatest Support 23 | 20 20 20 23 Greatest Overweight (x) 6 | . . 6 . Average Overweight (x) . | . . 1 . Largest Inventory Capacity 10 | . 8 10 10 Average Capacity 8 | . 8 9 10 Most Carried 10 | . 8 10 9 Average Carried 7 | . 7 7 8 Final Capacity 10 | 8 8 10 10 Final Carried 9 | 6 8 9 8 Class Distribution -------------------- 100% | Mutant Dominant Class ---------------- Mutant | -10/Materials Mutant | -9/Materials Mutant | -9/Mines Resources | -11 -10 -9 -9 ----------- Run | Scr Mat Mat Min Matter Collected 443 | 197 138 84 24 Remotely . | . . . . Salvage Created 541 | . 280 261 . Parts 23 | . 15 8 . Haulers Intercepted 1 | . 1 . . Recyclers Shooed . | . . . . Parts Field Recycled . | . . . . Retrieved Matter . | . . . . Parts Self-Destructed . | . . . . Prevented . | . . . . Kills | -11 -10 -9 -9 ------- Run | Scr Mat Mat Min Combat Hostiles Destroyed 12 | . 7 5 . Guns 12 | . 7 5 . Classes Destroyed 4 | . 3 1 . Hauler 1 | . 1 . . Swarmer 3 | . 3 . . Grunt 6 | . 4 2 . Sentry 3 | . . 3 . Best Kill Streak 4 | . 3 4 . Combat Bots Only 4 | . 3 4 . Max Kills in Single Turn 2 | . 2 1 . Gunslinging . | . . . . Exploded . | . . . . Melee . | . . . . Uniques/NPCs Destroyed . | . . . . Combat | -11 -10 -9 -9 -------- Run | Scr Mat Mat Min Damage Taken 1841 | . 480 754 607 Core 478 | . 76 189 213 Absorbed by Shields . | . . . . Core Remaining (%) 84 | 100 69 . . Volleys Fired 66 | . 41 25 . Largest 2 | . 2 2 . Hottest 85 | . 40 85 . Shots Fired 119 | . 69 50 . Gun 118 | . 69 49 . Cannon 1 | . . 1 . Launcher . | . . . . Special . | . . . . Kinetic 94 | . 69 25 . Thermal 25 | . . 25 . Explosive . | . . . . Electromagnetic . | . . . . Robot Hit Streak 14 | . 9 14 . Robot Miss Streak 3 | . 2 3 . Penetration Max . | . . . . Secondary Targets 1 | . 1 . . Max Gunslinging Chain 1 | . 1 . . Shots Hit Robots 80 | . 42 38 . Core Hits 29 | . 15 14 . Critical Kills . | . . . . Critical Parts Destroyed . | . . . . Critical Strikes 3 | . . 3 . Burn 3 | . . 3 . Melee Attacks . | . . . . Impact . | . . . . Slashing . | . . . . Piercing . | . . . . Sneak Attacks . | . . . . Combat Hostiles . | . . . . Follow-up Attacks . | . . . . Damage Inflicted 858 | . 442 416 . Guns 838 | . 442 396 . Cannons 20 | . . 20 . Explosions . | . . . . Melee . | . . . . Ramming . | . . . . Kinetic 610 | . 442 168 . Thermal 248 | . . 248 . Explosive . | . . . . Electromagnetic . | . . . . Impact . | . . . . Slashing . | . . . . Piercing . | . . . . Highest Corruption . | . . . . Average Corruption . | . . . . Corruption Purged . | . . . . Overload Shots . | . . . . Overflow Damage . | . . . . Projectiles . | . . . . Explosions . | . . . . Melee . | . . . . Knockbacks 1 | . . 1 . Impact . | . . . . Kinetic 1 | . . 1 . Secondary . | . . . . Self-Inflicted Damage . | . . . . Shots . | . . . . Rammed . | . . . . Targets Rammed . | . . . . Kicked . | . . . . Crushed . | . . . . Highest Temperature 103 | . 30 103 . Average Temperature 34 | . 10 45 . Received Heat Transfer 489 | . 282 207 . Siege Activations . | . . . . Robots Corrupted . | . . . . Combat Hostiles . | . . . . Parts Fried . | . . . . Impact Corruptions . | . . . . Robots Melted . | . . . . Combat Hostiles . | . . . . Parts Melted 6 | . . 6 . Heat Transferred 962 | . . 962 . Parts Sabotaged . | . . . . Parts Stolen . | . . . . Parts Stripped . | . . . . Power Chain Reactions . | . . . . Missiles Intercepted . | . . . . Alert | -11 -10 -9 -9 ------- Run | Scr Mat Mat Min Peak Influence 192 | . 191 192 13 Initial 13 | . . . 13 Average 75 | . 71 89 8 Maximum Alert Level . | . . . . Low Security (%) 100 | . 100 100 100 Level 1 . | . . . . Level 2 . | . . . . Level 3 . | . . . . Level 4 . | . . . . Level 5 . | . . . . High Security . | . . . . Max Security . | . . . . Squads Dispatched 4 | . 1 3 . Investigation . | . . . . Extermination . | . . . . Reinforcement 4 | . 1 3 . Assault . | . . . . Garrison . | . . . . Intercept . | . . . . Construction Impeded . | . . . . Haulers Reinforced . | . . . . Active Scanning Responses . | . . . . Cargo Convoy Interrupts . | . . . . Stealth | -11 -10 -9 -9 --------- Run | Scr Mat Mat Min Distress Signals 3 | . 1 2 . Communications Jammed . | . . . . Distress Signals . | . . . . Times Spotted 33 | . 10 21 2 Peak Tracking Total 12 | . 4 12 2 Tactical Retreats 2 | . . 2 . Traps | -11 -10 -9 -9 ------- Run | Scr Mat Mat Min Traps Triggered 2 | . . 2 . Indirectly . | . . . . Trap Hack Attempts . | . . . . Triggered . | . . . . Disarmed . | . . . . Reprogrammed . | . . . . Reused . | . . . . Traps Extracted . | . . . . Installed . | . . . . Triggered . | . . . . Machines | -11 -10 -9 -9 ---------- Run | Scr Mat Mat Min Machines Disabled . | . . . . Max in Single Turn . | . . . . Machines Sabotaged . | . . . . Garrisons Compromised . | . . . . Overloaded Fab Kills . | . . . . Hacking | -11 -10 -9 -9 --------- Run | Scr Mat Mat Min Machines Accessed 8 | . 4 4 . Terminals 8 | . 4 4 . Fabricators . | . . . . Repair Stations . | . . . . Recycling Units . | . . . . Scanalyzers . | . . . . Garrison Access . | . . . . Total Hacks 23 | . 11 12 . Successful 10 | . 4 6 . Failed 13 | . 7 6 . Catastrophic 3 | . . 3 . Database Lockouts . | . . . . Manual 20 | . 9 11 . Terminals 23 | . 11 12 . Fabricators . | . . . . Repair Stations . | . . . . Recycling Units . | . . . . Scanalyzers . | . . . . Garrison Access . | . . . . Terminal Hacks 5 | . 2 3 . Terminal Index 1 | . 1 . . Alert Level 1 | . . 1 . Unreport Threat 2 | . . 2 . Zone Layout 1 | . 1 . . Fabricator Hacks . | . . . . Repair Station Hacks . | . . . . Recycling Unit Hacks . | . . . . Scanalyzer . | . . . . Garrison Access Hacks . | . . . . Unauthorized Hacks 5 | . 2 3 . Terminals 5 | . 2 3 . Botnet 5 | . 2 3 . Fabricators . | . . . . Repair Stations . | . . . . Recycling Units . | . . . . Scanalyzers . | . . . . Garrison Access . | . . . . Data Cores Recovered . | . . . . Used . | . . . . Hacking Detections 8 | . 4 4 . Full Trace Events . | . . . . Feedback Events . | . . . . Feedback Blocked . | . . . . Robot Schematics Acquired . | . . . . Robots Built . | . . . . Authchips . | . . . . Time . | . . . . Total Robot Build Rating . | . . . . Part Schematics Acquired . | . . . . Parts Built . | . . . . Authchips . | . . . . Time . | . . . . Total Part Build Rating . | . . . . Parts Repaired . | . . . . Time . | . . . . Parts Recycled . | . . . . Recycled Matter . | . . . . Retrieved Matter . | . . . . Retrieved Components . | . . . . Parts Scanalyzed . | . . . . Part Schematics Acquired . | . . . . Parts Damaged . | . . . . Bothacking | -11 -10 -9 -9 ------------ Run | Scr Mat Mat Min Used RIF Installer . | . . . . Robots Hacked . | . . . . Non-combat . | . . . . Combat . | . . . . Robot Hacks Applied . | . . . . Relay Couplers Released . | . . . . Fabnet Peak Effective % . | . . . . Robots Rewired . | . . . . Allies Hacked . | . . . . Hacks Repelled . | . . . . Allies | -11 -10 -9 -9 -------- Run | Scr Mat Mat Min Total Allies . | . . . . Largest Group . | . . . . Highest-Rated Group . | . . . . Highest-Rated Ally . | . . . . Total Orders . | . . . . Ally Attacks . | . . . . Total Damage . | . . . . Kills . | . . . . Allies Corrupted . | . . . . Allies Melted . | . . . . Intel | -11 -10 -9 -9 ------- Run | Scr Mat Mat Min Robot Analysis Total . | . . . . Derelict Logs Recovered . | . . . . Drone Launches . | . . . . Drone Recoveries . | . . . . Exploration | -11 -10 -9 -9 ------------- Run | Scr Mat Mat Min Turns Passed 897 | . 529 333 35 Spaces Moved 552 | 1 314 210 27 Core 2 | . . 2 . Treads . | . . . . Legs 361 | 1 314 19 27 Wheels 189 | . . 189 . Hover . | . . . . Flight . | . . . . Fastest Speed 80 | 120 120 80 120 Average Speed 115 | 120 120 107 120 Slowest Speed 350 | 120 120 350 120 Overloaded Moves . | . . . . Propulsion Burnouts . | . . . . Robots Hopped . | . . . . Cave-ins Triggered . | . . . . Exploration Rate (%) 20 | 1 47 25 7 Regions Visited 3 Branch Regions 1 Pre-discovered Areas . | . . . . Known Exits Taken 1 | . . 1 . Unknown Exits Taken 2 | 1 1 . . Scrap Searched . | . . . . Spaces Dug . | . . . . Terrain Destroyed . | . . . . Melee . | . . . . Projectile . | . . . . AOE . | . . . . Terrain Rammed . | . . . . Walls Destroyed . | . . . . Machines Disabled . | . . . . Actions | -11 -10 -9 -9 --------- Run | Scr Mat Mat Min Total 717 | . 408 279 30 Wait 61 | . 40 21 . Move 549 | . 313 209 27 Hop . | . . . . Pick Up 21 | . 8 12 1 Fast Attach . | . . . . Attach 12 | . 3 7 2 Detach . | . . . . Swap 1 | . . 1 . Drop 7 | . 3 4 . Fire 66 | . 41 25 . Melee . | . . . . Ram . | . . . . Kick . | . . . . Crush . | . . . . Escape Stasis . | . . . . Rewire . | . . . . Trap . | . . . . Miscellaneous . | . . . . Route ------- -11/Scrapyard -10/Materials (discovered 3 exits: *Mat / [*Min x2]) -9/Materials (discovered 2 exits: *Min / *Sto) -9/Mines History --------- Turn | Location | Event 1 | -11/Scrapyard | Discovered new exit (range 0) 1 | -11/Scrapyard | Entered Materials 170 | -10/Materials | Discovered new exit (range 10) 306 | -10/Materials | Build established: Mutant 514 | -10/Materials | Discovered new exit (range 14) 514 | -10/Materials | Discovered new exit (range 16) 530 | -10/Materials | Entered another Materials area 530 | -9/Materials | Evolved 2 slots: Propulsion x1, Utility x1 532 | -9/Materials | Discovered new exit (range 7) 538 | -9/Materials | Identified exit to Storage 654 | -9/Materials | Lost 3 parts (1p2n) 848 | -9/Materials | Discovered new exit (range 11) 860 | -9/Materials | Identified exit to Mines 863 | -9/Materials | Entered Mines 864 | -9/Mines | Assembled infested the area 891 | -9/Mines | Core integrity fell below 50% 897 | -9/Mines | Core integrity fell below 20% 898 | -9/Mines | Destroyed by D-53 Grenadier with Mini Grenade Launcher Last Messages --------------- 00871_ Acquired 10 matter. 00884_ C-30 ARC bursts open, deploying its payload. 00884_ D-53 Grenadier unfolds itself. 00884_ Lgt. Treads destroyed. 00888_ Ion Engine destroyed. 00890_ Lgt. Cannon destroyed. 00891_ The unstable cave ceiling collapses. 00892_ Signal Interpreter destroyed. 00892_ U-05 Engineer lays Concrete. 00893_ The unstable cave ceiling collapses. 00893_ U-05 Engineer lays Concrete. 00894_ U-05 Engineer builds a Wall. 00894_ Med. Laser destroyed. 00894_ Aluminum Leg destroyed. 00896_ The unstable cave ceiling collapses. 00896_ U-05 Engineer destroyed. 00896_ R-06 Scavenger collects Welding Torch. 00897_ The unstable cave ceiling collapses. 00898_ Imp. Aluminum Leg destroyed. 00898_ R-06 Scavenger destroyed. Map ----- +----------------------------------------------------+ | ??????????????????????????????????????? | | ??????????????????????????????????????? | | ??????????????????????????????????????? | | ??????????????????????????????????????? | | ??????????????????????????????????????? | | ??????????????????????????????????????? | | ??????????????????????????????????????? | | ??????????????????????????????????????? | | ??????????????????????????????????????? | | ??????????????????????????????????????? | | ????????????????????????????????###???? | | ???????????????????????????????? #???? | | ????????????????###?????????????# #???? | | ????????????????# ????????????# #???? | | ????????????????? #??????????## #???? | | ?????????????????? #????????## ##??? | | ???????????????????? #???????# !##?? | | ???????????????????? ######## % |##? | | ????????????????????? " ###! #? | | ??????????????????????# ### #? | | ??????????????????????## ### #? | | ?????????????????????## ##### ## | | ?????????????????????# ## # | | ?????????????????????# | | ?????????????????????# | | ?????????????????????# @ | | ?????????????????????## # | | ??????????????????????# |% d d | | ??????????????????????# # # # | | ????????????????????? ## # | | ????????????????????###??## #### | | ??????????????????????????### # ###?? | | ????????????????????????????#######???? | | ??????????????????????????????????????? | | ??????????????????????????????????????? | | ??????????????????????????????????????? | | ??????????????????????????????????????? | | ??????????????????????????????????????? | | ??????????????????????????????????????? | | ??????????????????????????????????????? | | ??????????????????????????????????????? | | ??????????????????????????????????????? | | ??????????????????????????????????????? | | ??????????????????????????????????????? | | ??????????????????????????????????????? | | ??????????????????????????????????????? | | ??????????????????????????????????????? | | ??????????????????????????????????????? | | ??????????????????????????????????????? | | ??????????????????????????????????????? | +----------------------------------------------------+ Best States ------------- Heat Dissipation 28 Energy Generation 10 Energy Capacity 250 Matter Stores 300 Matter Capacity 300 Sight Range 16 Robot Scan Range 14 Terrain Scan Density 10 Evasion (%) 55 Recoil Reduction 1 Item Schematics ----------------- None Robot Schematics ------------------ None Fabricated ------------ Nothing Alien Tech Used ----------------- None Achievements -------------- None Challenges ------------ None Game ------ Seed AngularHellfireFilter Manual? 0 Play Time 00:09:52 Cumulative 98.3 hours Start 2021.12.16 @ 11:22:26 End 2021.12.16 @ 11:31:33 Sessions 1 Manual Loads 0 Difficulty Rogue Special Mode None Game No. 202 Rogue 202 Adventurer 0 Explorer 0 Win Type - Total 0 Types 0/0/0/0/0/0/0/0/0 Lore% 32 Gallery% 55 Achievement% 35 Wizard Run 0 Options --------- ASCII 0 Keyboard 1 Movement Numpad Keybinds 0 Fullscreen 1 Font 18/SmallcapsGlow Map View 76x50 Tactical HUD 1 Map Filters NONE Filters NONE Steam 1 RUN: cce3c799-6a24-4c87-865a-c87fdfc1f8d1